Cogmind - Beta 15 *** ADVENTURER MODE // 2025.06.06 @ 21:03:13 Player: triibiis Result: Destroyed by G-47 Trooper with Particle Gun Performance ------------- Evolutions (0) 0 Regions Visited (2) 400 Robots Destroyed (14) 70 Value Destroyed (171) 171 Prototype IDs (2) 40 Alien Tech Used (0) 0 Bonus (0) 0 TOTAL SCORE: 681 Bonus ------- None Cogmind --------- Core Integrity 0/250 Matter 256/300 Energy 100/100 System Corruption 0% Temperature Cool (9) Movement Core (150) Ox2 Location -10/Mines Parts ------- > --- POWER (1) -------- (None) > --- PROPULSION (2) --- (None) > --- UTILITY (2) ------ Small Storage Unit > --- WEAPON (2) ------- Medium Laser > --- INVENTORY (8) ---- Light Ion Engine Light Treads Light Treads Peak State ------------ > --- POWER ------------ Light Ion Engine > --- PROPULSION ------- Wheel Compact Wheel > --- UTILITY ---------- Small Storage Unit > --- WEAPON ----------- EM Pulse Gun Assault Rifle > --- INVENTORY -------- Light Ion Engine Light Treads Light Treads Aluminum Leg Aluminum Leg Medium Laser [Rating: 6] Favorites ----------- Power Light Ion Engine Engine Light Ion Engine Propulsion Wheel Wheel Wheel Utility Small Storage Unit Storage Small Storage Unit Weapon Assault Rifle Energy Gun EM Pulse Gun Ballistic Gun Assault Rifle Launcher Grenade Launcher Special Weapon Enhanced Flamer Build | -11 -10 -10 ------- Run | Yrd Mat Min Slots Evolved . | . . . Power . | . . . Propulsion . | . . . Utility . | . . . Weapon . | . . . Parts Attached 9 | 6 . 3 Power 1 | 1 . . Engine 1 | 1 . . Core . | . . . Reactor . | . . . Propulsion 2 | 2 . . Treads . | . . . Leg . | . . . Wheel 2 | 2 . . Hover . | . . . Flight . | . . . Utility 1 | 1 . . Device . | . . . Storage 1 | 1 . . Processor . | . . . Hackware . | . . . Protection . | . . . Artifact . | . . . Weapon 5 | 2 . 3 Energy Gun 2 | 1 . 1 Energy Cannon . | . . . Ballistic Gun 1 | 1 . . Ballistic Cannon . | . . . Launcher 1 | . . 1 Special Weapon 1 | . . 1 Impact Weapon . | . . . Slashing Weapon . | . . . Piercing Weapon . | . . . Special Melee Weapon . | . . . Unidentified Prototypes . | . . . Parts Lost 7 | . . 7 Power 1 | . . 1 Propulsion 2 | . . 2 Utility . | . . . Weapon 4 | . . 4 Highest Loss Streak 5 | . . 5 To Critical Strikes . | . . . Average Backups 4 | 4 5 3 Power . | . 1 1 Propulsion 2 | 3 3 2 Utility . | . . . Weapon 1 | . 1 . Tool/Special . | . . . Unused Backups 5 | . 2 3 Power 1 | . . 1 Propulsion 4 | . 2 2 Utility . | . . . Weapon . | . . . Tool/Special . | . . . Average Slot Usage (%) 69 | . 85 47 Engine 11 | . 14 6 Wheel 21 | . 28 10 Storage 14 | . 14 14 Energy Gun 11 | . 14 7 Ballistic Gun 11 | . 14 6 Peak Build Rating 6 | 6 6 6 Average Rating 4 | 3 6 3 On Entrance 4 | . 6 6 Naked Turns . | . . . Heaviest Build 13 | 12 12 13 Greatest Support 26 | 26 26 26 Greatest Overweight (x) 3 | 1 . 3 Average Overweight (x) . | . . 1 Largest Inventory Capacity 8 | 8 8 8 Average Capacity 7 | 7 8 8 Most Carried 7 | 7 7 5 Average Carried 4 | 4 5 3 Final Capacity 8 | 8 8 8 Final Carried 6 | 6 5 3 Class Distribution -------------------- 100% | Mutant Dominant Class ---------------- Mutant | -10/Materials Mutant | -10/Mines Resources | -11 -10 -10 ----------- Run | Yrd Mat Min Matter Collected 329 | 224 43 62 Remotely . | . . . Salvage Created 301 | . 190 111 Parts 28 | . 17 11 Haulers Intercepted . | . . . Recyclers Shooed . | . . . Parts Field Recycled . | . . . Retrieved Matter . | . . . Parts Self-Destructed . | . . . Prevented . | . . . Kills | -11 -10 -10 ------- Run | Yrd Mat Min Combat Hostiles Destroyed 12 | . 5 7 Guns 11 | . 5 6 AOE 1 | . . 1 Classes Destroyed 6 | . 4 2 Worker 2 | . 1 1 Builder 1 | . . 1 Watcher 1 | . 1 . Swarmer 8 | . 3 5 Grunt 2 | . 2 . Assembled 2 | . . 2 Best Kill Streak 5 | . 5 3 Combat Bots Only 3 | . 3 3 Max Kills in Single Turn 2 | . 2 1 Gunslinging . | . . . Exploded 1 | . . 1 Melee . | . . . Uniques/NPCs Destroyed . | . . . Combat | -11 -10 -10 -------- Run | Yrd Mat Min Hostile Shots Fired 90 | . 15 75 Missed 23 | . 3 20 Hits 67 | . 12 55 Melee 6 | . . 6 Projectile 61 | . 12 49 Critical Strikes 1 | . . 1 Damage Taken 703 | 4 89 610 Core 254 | . 22 232 Absorbed by Shields . | . . . Ignored by Resistances 212 | . 30 182 Core Remaining (%) 100 | 100 . . Volleys Fired 44 | . 11 33 Largest 2 | . 2 2 Hottest 130 | . 60 130 Shots Fired 60 | . 22 38 Gun 56 | . 22 34 Cannon . | . . . Launcher 3 | . . 3 Special 1 | . . 1 Kinetic 32 | . 11 21 Thermal 13 | . . 13 Explosive 3 | . . 3 Electromagnetic 12 | . 11 1 Robot Hit Streak 9 | . 4 9 Robot Miss Streak 8 | . 1 8 Penetration Max . | . . . Secondary Targets . | . . . Shots Hit Robots 27 | . 14 13 Core Hits 21 | . 9 12 Critical Kills . | . . . Critical Parts Destroyed . | . . . Critical Strikes 1 | . . 1 Burn 1 | . . 1 Melee Attacks . | . . . Impact . | . . . Slashing . | . . . Piercing . | . . . Sneak Attacks . | . . . Combat Hostiles . | . . . Follow-up Attacks . | . . . Damage Inflicted 467 | 10 188 269 Guns 353 | . 188 165 Cannons . | . . . Explosions 104 | . . 104 Melee . | . . . Ramming 10 | 10 . . Kinetic 112 | . 72 40 Thermal 115 | . . 115 Explosive 104 | . . 104 Electromagnetic 126 | . 116 10 Impact . | . . . Slashing . | . . . Piercing . | . . . Highest Corruption . | . . . Average Corruption . | . . . Corruption Purged . | . . . Corruption Blocked . | . . . Overload Shots . | . . . Overflow Damage 13 | . . 13 Projectiles . | . . . Explosions 13 | . . 13 Melee . | . . . Knockbacks . | . . . Impact . | . . . Kinetic . | . . . Secondary . | . . . Self-Inflicted Damage 75 | 4 . 71 Shots 3 | . . 3 Rammed 2 | 2 . . Targets Rammed 2 | 2 . . Kicked . | . . . Crushed . | . . . Highest Temperature 54 | . 20 54 Average Temperature 17 | . 16 24 Received Heat Transfer 231 | . 42 189 Siege Activations . | . . . Martial Activations . | . . . Shielding Activations . | . . . Robots Disrupted . | . . . Combat Hostiles . | . . . Robots Corrupted . | . . . Combat Hostiles . | . . . Parts Fried 1 | . 1 . Impact Corruptions . | . . . Robots Melted . | . . . Combat Hostiles . | . . . Parts Melted 1 | . . 1 Heat Transferred 407 | . . 407 Parts Sabotaged . | . . . Parts Stolen . | . . . Parts Stripped . | . . . Power Chain Reactions . | . . . Alert | -11 -10 -10 ------- Run | Yrd Mat Min Maximum Alert Level . | . . . Low Security (%) 100 | 100 100 100 Level 1 . | . . . Level 2 . | . . . Level 3 . | . . . Level 4 . | . . . Level 5 . | . . . High Security . | . . . Max Security . | . . . Peak Influence 82 | . 82 70 Initial 20 | . . 20 Average 18 | . 21 19 Influence Increases 301 | . 165 136 Destroy 0b10 Robot/C 200 | . 100 100 Destroy 0b10 Robot/NC 20 | . 10 10 Destroy Leader 32 | . 22 10 Successful Hack 33 | . 33 . Destroy Structure 1 | . . 1 Lose Combat Pursuer 15 | . . 15 Influence Decreases 266 | . 103 163 Entered New Map 42 | . . 42 Time Decay 158 | . 103 55 Lost Part 66 | . . 66 Squads Dispatched 1 | . 1 . Investigation 1 | . 1 . Extermination . | . . . Reinforcement . | . . . Assault . | . . . Garrison . | . . . Intercept . | . . . Searches Triggered . | . . . Construction Impeded . | . . . Haulers Reinforced . | . . . Active Scanning Responses . | . . . Cargo Convoy Interrupts . | . . . Stealth | -11 -10 -10 --------- Run | Yrd Mat Min Distress Signals 1 | . 1 . Communications Jammed . | . . . Distress Signals . | . . . Times Spotted 16 | . 6 10 Peak Tracking Total 5 | . 4 5 Tactical Retreats 1 | . . 1 Traps | -11 -10 -10 ------- Run | Yrd Mat Min Traps Triggered . | . . . Indirectly . | . . . Trap Hack Attempts . | . . . Triggered . | . . . Disarmed . | . . . Reprogrammed 4 | . 4 . Reused . | . . . Traps Extracted . | . . . Installed . | . . . Triggered . | . . . Machines | -11 -10 -10 ---------- Run | Yrd Mat Min Machines Disabled . | . . . Max in Single Turn . | . . . Machines Repaired . | . . . Machines Dismantled . | . . . Machines Sabotaged . | . . . Overloaded Fab Kills . | . . . Hacking | -11 -10 -10 --------- Run | Yrd Mat Min Machines Accessed 4 | . 4 . Terminals 4 | . 4 . Fabricators . | . . . Repair Stations . | . . . Recycling Units . | . . . Scanalyzers . | . . . Garrison Access . | . . . Total Hacks 21 | . 21 . Successful 11 | . 11 . Failed 10 | . 10 . Catastrophic 1 | . 1 . Database Lockouts . | . . . Manual 9 | . 9 . Terminals 21 | . 21 . Fabricators . | . . . Repair Stations . | . . . Recycling Units . | . . . Scanalyzers . | . . . Garrison Access . | . . . Terminal Hacks 11 | . 11 . Record 3 | . 3 . Prototype ID Bank 1 | . 1 . Level Access Points 1 | . 1 . Branch Access Points 1 | . 1 . Emergency Access Points 1 | . 1 . Terminal Index 1 | . 1 . Locate Traps 1 | . 1 . Reprogram Traps 1 | . 1 . Transport Status 1 | . 1 . Fabricator Hacks . | . . . Repair Station Hacks . | . . . Recycling Unit Hacks . | . . . Scanalyzer . | . . . Garrison Access Hacks . | . . . Unauthorized Hacks . | . . . Terminals . | . . . Fabricators . | . . . Repair Stations . | . . . Recycling Units . | . . . Scanalyzers . | . . . Garrison Access . | . . . Data Cores Recovered . | . . . Used . | . . . Hacking Detections 4 | . 4 . Full Trace Events 4 | . 4 . Feedback Events . | . . . Feedback Blocked . | . . . Robot Schematics Acquired . | . . . Robots Built . | . . . Authchips . | . . . Time . | . . . Total Robot Build Rating . | . . . Part Schematics Acquired . | . . . Parts Built . | . . . Authchips . | . . . Time . | . . . Total Part Build Rating . | . . . Parts Repaired . | . . . Time . | . . . Parts Recycled . | . . . Recycled Matter . | . . . Retrieved Matter . | . . . Retrieved Components . | . . . Parts Scanalyzed . | . . . Part Schematics Acquired . | . . . Parts Damaged . | . . . Bothacking | -11 -10 -10 ------------ Run | Yrd Mat Min Used RIF Installer . | . . . Robots Hacked . | . . . Non-combat . | . . . Combat . | . . . Robot Hacks Applied . | . . . Relay Couplers Released . | . . . Fabnet Peak Effective % . | . . . Robots Rewired . | . . . Allies Hacked . | . . . Hacks Repelled . | . . . Allies | -11 -10 -10 -------- Run | Yrd Mat Min Total Allies . | . . . Largest Group . | . . . Highest-Rated Group . | . . . Highest-Rated Ally . | . . . Total Orders . | . . . Ally Attacks . | . . . Total Damage . | . . . Kills . | . . . Allies Corrupted . | . . . Allies Melted . | . . . Intel | -11 -10 -10 ------- Run | Yrd Mat Min Active Infowar (turns) . | . . . Robot Analysis Total . | . . . Derelict Logs Recovered . | . . . Drone Launches . | . . . Drone Recoveries . | . . . Exploration | -11 -10 -10 ------------- Run | Yrd Mat Min Turns Passed 605 | 61 319 225 Spaces Moved 484 | 51 316 117 Core 72 | 2 . 70 Treads . | . . . Legs . | . . . Wheels 412 | 49 316 47 Hover . | . . . Flight . | . . . Fastest Speed 50 | 50 90 90 Average Speed 98 | 84 90 127 Slowest Speed 200 | 95 90 200 Overloaded Moves . | . . . Propulsion Burnouts . | . . . Robots Hopped . | . . . Potential Cave-ins . | . . . Cave-ins Triggered . | . . . Exploration Rate (%) 27 | 4 49 28 Regions Visited 2 Branch Regions 1 Pre-discovered Areas . | . . . Known Exits Taken 1 | . 1 . Unknown Exits Taken 1 | 1 . . Scrap Searched . | . . . Spaces Dug . | . . . Terrain Destroyed 1 | . . 1 Melee . | . . . Projectile . | . . . AOE 1 | . . 1 Terrain Rammed . | . . . Walls Destroyed . | . . . Machines Disabled . | . . . Actions | -11 -10 -10 --------- Run | Yrd Mat Min Total 548 | 66 329 153 Wait . | . . . Move 482 | 50 315 117 Hop . | . . . Pick Up 9 | 8 1 . Fast Attach 5 | 4 . 1 Attach 4 | 2 . 2 Detach . | . . . Swap . | . . . Drop 2 | . 2 . Fire 44 | . 11 33 Melee . | . . . Ram 2 | 2 . . Kick . | . . . Crush . | . . . Escape Stasis . | . . . Rewire . | . . . Trap . | . . . Miscellaneous . | . . . Route ------- -11/Scrapyard -10/Materials (discovered 4 exits: *Mat x3 / *Min) -10/Mines History --------- Turn | Location | Event 26 | -11/Scrapyard | Discovered new exit (range 16) 62 | -11/Scrapyard | Entered Materials 96 | -10/Materials | Identified exit to Mines 96 | -10/Materials | Identified exit to Materials 324 | -10/Materials | Build established: Mutant 381 | -10/Materials | Entered Mines 454 | -10/Mines | Excavation squad dispatched 454 | -10/Mines | A large section of the Mines collapsed 483 | -10/Mines | Core integrity fell below 50% 511 | -10/Mines | Lost 5 parts (1p2n2w) 569 | -10/Mines | A weapon hastily lodged in a ceiling crevice suddenly fell to the ground 577 | -10/Mines | Core integrity fell below 20% 606 | -10/Mines | Destroyed by G-47 Trooper with Particle Gun Last Messages --------------- Assault Rifle destroyed. Lgt. Ion Engine destroyed. as-22829 suffers critical hit (Burn). K-01 Serf collects debris. as-22829 destroyed. K-01 Serf collects debris. Med. Matter Pod melted. K-01 Serf destroyed. U-05 Engineer lays Concrete. Acquired 19 matter. U-05 Engineer lays Concrete. K-01 Serf collects debris. Critical hit (Burn: +37). An Enh. Flamer has been hastily shoved under some rubble with a note attached: "One is never enough." Acquired Enh. Flamer. S-10 Pest destroyed. Enh. Flamer destroyed. S-10 Pest destroyed. Map ----- +----------------------------------------------------+ | | | | | | | | | | | | | | | ??????????????????????????????????? | | ??????????????????????????????????? | | ??????????????????????????????????? | | ????????????????????????##????????? | | ???????????????????????? ????????? | | ???????????????????????? ????????? | | ???????????????????????? ????????? | | ???????????????????????? "???????? | | ???????????????????????? "???????? | | ???????????????????????? ???????? | | ???????????????????????? "???????? | | ???????????????????????? "???????? | | ???????????????????????? "???????? | | ???????????????????????? %=???????? | | ????????????????????????#=#???????? | | ????????????????????????#%#???????? | | ????????????????????????#[#???????? | | ????????????????????????#=#???????? | | ????????????????????????#@#???????? | | ????????????????????????# ##??????? | | ????????????????????????# #??????? | | ????????????????????????## #??????? | | ?????????????????????????# #??????? | | ?????????????????????????# #??????? | | ??????????????????? ????#g#??????? | | ??????????????????? #???# #??????? | | ??????????????????? #???# #??????? | | ??????????????????? #???# #??????? | | ??????????????????? #???# #??????? | | ??????????????????? ????# #??????? | | ??????????????????# ????# #??????? | | ????????????????## ????# ##?????? | | ???????????????## #??## ##????? | | ??????????????## #### #????? | | ??????????????# #????? | | ??????????????# #????? | | ??????????? ###### #????? | | ????????????###### #????## ##????? | | ????????????###### #???## #?????? | | ????????????# #??## #?????? | | ????????????# #### #?## #?????? | | ##?????????##*##?# ### ##?????? | | ##??????### #### ########?? | +----------------------------------------------------+ Best States ------------- Heat Dissipation 25 Energy Generation 10 Energy Capacity 125 Matter Stores 300 Matter Capacity 300 Sight Range 16 Terrain Scan Density 10 Resistance: KI 20 Resistance: TH 20 Resistance: EX 20 Resistance: EM 20 Resistance: I 20 Resistance: S 20 Resistance: P 20 Evasion (%) 44 Offensive Hacking 10 Item Schematics ----------------- None Robot Schematics ------------------ None Fabricated ------------ Nothing Repaired ---------- Nothing Alien Tech Used ----------------- None Achievements -------------- None Challenges ------------ None Game ------ Seed StrikeBraceHammer Manual? 0 Play Time 00:09:08 Cumulative 10.7 hours Start 2025.06.06 @ 20:55:21 End 2025.06.06 @ 21:03:13 Sessions 1 Manual Loads 0 Difficulty Adventurer Special Mode None Game No. 26 Rogue 0 Adventurer 26 Explorer 0 Win Type - Total 0 Types 0/0/0/0/0/0/0/0/0/0 Lore% 15 Gallery% 13 Achievement% 17 Wizard Run 0 Options --------- Layout 1 ASCII 0 Keyboard 0 Movement Arrows Keybinds 0 Fullscreen 1 Font 36/Smallcaps Map View 50x43 Zoom Use 15% Tactical HUD 0 Map Filters NONE Filters NONE Steam 1 RUN: 3e4a960d-0877-4f58-93b4-826bf430946f